[Event "December 19 Late 2023"]
[Site "https://www.chess.com"]
[Date "2023.12.19"]
[Round "6"]
[White "Navyblue1"]
[Black "Soderstrom, Adrian"]
[Result "1-0"]
[Board "129"]
[TimeControl "180+1"]
[BlackFideId "1745786"]
[WhiteElo "2128"]
[BlackElo "2154"]
[BlackTeam "SWE"]
[WhiteClock "0:00:13"]
[BlackClock "0:00:11"]

1. d4 {[%clk 0:02:52]}  g6 {[%clk 0:03:00]} 2. c4 {[%clk 0:02:49]}  Nf6 {[%clk 0:03:01]} 3. Nc3 {[%clk 0:02:49]}  d5 {[%clk 0:03:02]} 4. Nf3 {[%clk 0:02:49]}  Bg7 {[%clk 0:03:01]} 5. Qb3 {[%clk 0:02:48]}  dxc4 {[%clk 0:03:01]} 6. Qxc4 {[%clk 0:02:49]}  O-O {[%clk 0:03:02]} 7. e4 {[%clk 0:02:49]}  a6 {[%clk 0:03:02]} 8. Bf4 {[%clk 0:02:49]}  Nc6 {[%clk 0:02:57]} 9. Be2 {[%clk 0:02:31]}  Bg4 {[%clk 0:02:38]} 10. Rd1 {[%clk 0:02:25]}  Qe8 {[%clk 0:02:27]} 11. Qb3 {[%clk 0:02:05]}  Rd8 {[%clk 0:02:20]} 12. d5 {[%clk 0:01:48]}  Na5 {[%clk 0:02:18]} 13. Qb4 {[%clk 0:01:31]}  e5 {[%clk 0:02:18]} 14. dxe6 {[%clk 0:00:53]}  Rxd1+ {[%clk 0:02:15]} 15. Bxd1 {[%clk 0:00:49]}  Qxe6 {[%clk 0:01:54]} 16. Qxa5 {[%clk 0:00:46]}  Nxe4 {[%clk 0:01:54]} 17. Nxe4 {[%clk 0:00:34]}  Qxe4+ {[%clk 0:01:54]} 18. Be3 {[%clk 0:00:35]}  b6 {[%clk 0:01:37]} 19. Qd2 {[%clk 0:00:29]}  Qc4 {[%clk 0:01:21]} 20. h3 {[%clk 0:00:20]}  Bf5 {[%clk 0:01:19]} 21. Be2 {[%clk 0:00:19]}  Qxa2 {[%clk 0:01:20]} 22. O-O {[%clk 0:00:19]}  Qxb2 {[%clk 0:01:20]} 23. Qxb2 {[%clk 0:00:18]}  Bxb2 {[%clk 0:01:21]} 24. Nd4 {[%clk 0:00:18]}  a5 {[%clk 0:01:17]} 25. Nxf5 {[%clk 0:00:18]}  gxf5 {[%clk 0:01:18]} 26. Bd3 {[%clk 0:00:18]}  a4 {[%clk 0:01:18]} 27. Bxf5 {[%clk 0:00:18]}  a3 {[%clk 0:01:18]} 28. Bc1 {[%clk 0:00:17]}  Rd8 {[%clk 0:01:13]} 29. Bxb2 {[%clk 0:00:16]}  axb2 {[%clk 0:01:14]} 30. Rb1 {[%clk 0:00:16]}  Rd2 {[%clk 0:01:13]} 31. Kf1 {[%clk 0:00:16]}  Rd5 {[%clk 0:01:08]} 32. Be4 {[%clk 0:00:16]}  Rb5 {[%clk 0:01:09]} 33. Bd3 {[%clk 0:00:16]}  Rb3 {[%clk 0:01:09]} 34. Ke2 {[%clk 0:00:17]}  c5 {[%clk 0:01:09]} 35. Kd2 {[%clk 0:00:17]}  b5 {[%clk 0:01:08]} 36. Kc2 {[%clk 0:00:18]}  c4 {[%clk 0:01:08]} 37. Be2 {[%clk 0:00:17]}  b4 {[%clk 0:00:47]} 38. Rxb2 {[%clk 0:00:16]}  Rc3+ {[%clk 0:00:47]} 39. Kd2 {[%clk 0:00:15]}  Rxh3 {[%clk 0:00:42]} 40. Rxb4 {[%clk 0:00:15]}  Rh2 {[%clk 0:00:36]} 41. g3 {[%clk 0:00:14]}  c3+ {[%clk 0:00:35]} 42. Kxc3 {[%clk 0:00:13]}  Rxf2 {[%clk 0:00:35]} 43. Rg4+ {[%clk 0:00:13]}  Kf8 {[%clk 0:00:35]} 44. Kd3 {[%clk 0:00:14]}  Rf6 {[%clk 0:00:35]} 45. Ke3 {[%clk 0:00:14]}  Re6+ {[%clk 0:00:35]} 46. Re4 {[%clk 0:00:14]}  Rg6 {[%clk 0:00:35]} 47. g4 {[%clk 0:00:14]}  h6 {[%clk 0:00:35]} 48. Rf4 {[%clk 0:00:14]}  Re6+ {[%clk 0:00:34]} 49. Kf2 {[%clk 0:00:15]}  Kg7 {[%clk 0:00:32]} 50. Bf3 {[%clk 0:00:15]}  Ra6 {[%clk 0:00:23]} 51. Kg3 {[%clk 0:00:15]}  Ra3 {[%clk 0:00:23]} 52. Rf5 {[%clk 0:00:15]}  Kg6 {[%clk 0:00:22]} 53. Rb5 {[%clk 0:00:15]}  f6 {[%clk 0:00:21]} 54. Rb6 {[%clk 0:00:15]}  Kg5 {[%clk 0:00:19]} 55. Rb5+ {[%clk 0:00:15]}  Kg6 {[%clk 0:00:19]} 56. Rf5 {[%clk 0:00:15]}  Ra4 {[%clk 0:00:19]} 57. Rf4 {[%clk 0:00:15]}  Ra5 {[%clk 0:00:18]} 58. Kh4 {[%clk 0:00:15]}  Rb5 {[%clk 0:00:17]} 59. Be4+ {[%clk 0:00:15]}  Kg7 {[%clk 0:00:17]} 60. Bf5 {[%clk 0:00:15]}  Rc5 {[%clk 0:00:17]} 61. Rd4 {[%clk 0:00:15]}  Rc1 {[%clk 0:00:14]} 62. Rd7+ {[%clk 0:00:15]}  Kg8 {[%clk 0:00:14]} 63. Kg3 {[%clk 0:00:15]}  Rc3+ {[%clk 0:00:14]} 64. Kf4 {[%clk 0:00:16]}  Rc4+ {[%clk 0:00:14]} 65. Ke3 {[%clk 0:00:16]}  Ra4 {[%clk 0:00:14]} 66. Rd4 {[%clk 0:00:15]}  Ra3+ {[%clk 0:00:14]} 67. Ke4 {[%clk 0:00:15]}  Ra5 {[%clk 0:00:15]} 68. Rc4 {[%clk 0:00:15]}  Re5+ {[%clk 0:00:15]} 69. Kf4 {[%clk 0:00:15]}  Ra5 {[%clk 0:00:15]} 70. Re4 {[%clk 0:00:15]}  Kf7 {[%clk 0:00:15]} 71. Rc4 {[%clk 0:00:15]}  Ra7 {[%clk 0:00:14]} 72. Rc6 {[%clk 0:00:13]}  Ra1 {[%clk 0:00:13]} 73. Rc7+ {[%clk 0:00:13]}  Kf8 {[%clk 0:00:14]} 74. Ke4 {[%clk 0:00:13]}  Ra4+ {[%clk 0:00:14]} 75. Kd5 {[%clk 0:00:13]}  Ra6 {[%clk 0:00:15]} 76. Rh7 {[%clk 0:00:12]}  Ra5+ {[%clk 0:00:14]} 77. Ke6 {[%clk 0:00:12]}  Ra6+ {[%clk 0:00:14]} 78. Kd5 {[%clk 0:00:12]}  Ra5+ {[%clk 0:00:15]} 79. Ke4 {[%clk 0:00:12]}  Re5+ {[%clk 0:00:14]} 80. Kf4 {[%clk 0:00:12]}  Kg8 {[%clk 0:00:11]} 81. Rxh6 {[%clk 0:00:13]}  Kg7 {[%clk 0:00:11]} 82. Rh7+ {[%clk 0:00:13]}  Kg8 {[%clk 0:00:11]} 83. Rd7 {[%clk 0:00:12]}  Ra5 {[%clk 0:00:11]} 84. Rd6 {[%clk 0:00:12]}  Kg7 {[%clk 0:00:11]} 85. Rd7+ {[%clk 0:00:12]}  Kg8 {[%clk 0:00:12]} 86. Kg3 {[%clk 0:00:12]}  Ra3+ {[%clk 0:00:12]} 87. Kh4 {[%clk 0:00:12]}  Ra8 {[%clk 0:00:08]} 88. Kh5 {[%clk 0:00:12]}  Rf8 {[%clk 0:00:06]} 89. Kg6 {[%clk 0:00:12]}  Kh8 {[%clk 0:00:07]} 90. Rh7+ {[%clk 0:00:12]}  Kg8 {[%clk 0:00:07]} 91. Rg7+ {[%clk 0:00:12]}  Kh8 {[%clk 0:00:08]} 92. Rh7+ {[%clk 0:00:09]}  Kg8 {[%clk 0:00:08]} 93. Rh3 {[%clk 0:00:10]}  Re8 {[%clk 0:00:08]} 94. Kxf6 {[%clk 0:00:10]}  Rf8+ {[%clk 0:00:08]} 95. Kg5 {[%clk 0:00:10]}  Rb8 {[%clk 0:00:08]} 96. Kh4 {[%clk 0:00:09]}  Kg7 {[%clk 0:00:08]} 97. g5 {[%clk 0:00:09]}  Rb4+ {[%clk 0:00:07]} 98. Bg4 {[%clk 0:00:09]}  Kg6 {[%clk 0:00:08]} 99. Re3 {[%clk 0:00:09]}  Rb6 {[%clk 0:00:07]} 100. Re6+ {[%clk 0:00:09]}  Rxe6 {[%clk 0:00:05]} 101. Bxe6 {[%clk 0:00:10]}  Kg7 {[%clk 0:00:06]} 102. Bf5 {[%clk 0:00:10]}  Kh8 {[%clk 0:00:07]} 103. Kh5 {[%clk 0:00:10]}  Kg7 {[%clk 0:00:07]} 104. g6 {[%clk 0:00:10]}  Kh8 {[%clk 0:00:08]} 105. Kh6 {[%clk 0:00:10]}  Kg8 {[%clk 0:00:09]} 106. Be6+ {[%clk 0:00:11]}  Kf8 {[%clk 0:00:09]} 107. g7+ {[%clk 0:00:11]}  Ke7 {[%clk 0:00:09]} 108. g8=Q {[%clk 0:00:11]}  Kf6 {[%clk 0:00:10]} 109. Qf7+ {[%clk 0:00:12]}  Ke5 {[%clk 0:00:11]} 110. Qf5+ {[%clk 0:00:12]}  Kd6 {[%clk 0:00:08]} 111. Kg6 {[%clk 0:00:12]}  Ke7 {[%clk 0:00:08]} 112. Qf6+ {[%clk 0:00:12]}  Ke8 {[%clk 0:00:08]} 113. Bf7+ {[%clk 0:00:12]}  Kf8 {[%clk 0:00:08]} 114. Bg8+ {[%clk 0:00:12]}  Ke8 {[%clk 0:00:09]} 115. Qf7+ {[%clk 0:00:12]}  Kd8 {[%clk 0:00:09]} 116. Kf6 {[%clk 0:00:13]}  Kc8 {[%clk 0:00:09]} 117. Ke6 {[%clk 0:00:13]}  Kb8 {[%clk 0:00:10]} 118. Kd6 {[%clk 0:00:14]}  Kc8 {[%clk 0:00:11]} 119. Qc7# {[%clk 0:00:13]} 1-0

[Event "December 19 Late 2023"]
[Site "https://www.chess.com"]
[Date "2023.12.19"]
[Round "6"]
[White "Kappeler, Kaspar"]
[Black "Kanter, Eduard"]
[Result "0-1"]
[Board "131"]
[TimeControl "180+1"]
[WhiteFideId "1309072"]
[BlackFideId "4103963"]
[WhiteElo "2192"]
[BlackElo "2243"]
[WhiteTeam "SUI"]
[BlackTeam "RUS"]
[WhiteClock "0:00:01"]
[BlackClock "0:00:39"]

1. c4 {[%clk 0:03:00]}  e6 {[%clk 0:02:58]} 2. Nf3 {[%clk 0:03:00]}  d5 {[%clk 0:02:56]} 3. g3 {[%clk 0:03:00]}  dxc4 {[%clk 0:02:55]} 4. Bg2 {[%clk 0:02:59]}  a6 {[%clk 0:02:55]} 5. O-O {[%clk 0:02:58]}  b5 {[%clk 0:02:56]} 6. Ne5 {[%clk 0:02:51]}  c6 {[%clk 0:02:55]} 7. Nxc6 {[%clk 0:02:42]}  Qb6 {[%clk 0:02:55]} 8. Ne5 {[%clk 0:02:22]}  Bb7 {[%clk 0:02:53]} 9. d3 {[%clk 0:02:14]}  Bxg2 {[%clk 0:02:52]} 10. Kxg2 {[%clk 0:02:14]}  Nc6 {[%clk 0:02:44]} 11. Be3 {[%clk 0:01:57]}  Bc5 {[%clk 0:02:42]} 12. Bxc5 {[%clk 0:01:55]}  Qxc5 {[%clk 0:02:43]} 13. Nxc6 {[%clk 0:01:46]}  Qxc6+ {[%clk 0:02:44]} 14. Kg1 {[%clk 0:01:46]}  h5 {[%clk 0:02:25]} 15. dxc4 {[%clk 0:01:28]}  h4 {[%clk 0:02:19]} 16. cxb5 {[%clk 0:01:27]}  axb5 {[%clk 0:02:19]} 17. e4 {[%clk 0:01:08]}  hxg3 {[%clk 0:02:15]} 18. fxg3 {[%clk 0:00:57]}  Nf6 {[%clk 0:01:43]} 19. Nc3 {[%clk 0:00:47]}  b4 {[%clk 0:01:42]} 20. Ne2 {[%clk 0:00:30]}  Nxe4 {[%clk 0:01:30]} 21. Qd4 {[%clk 0:00:29]}  Rd8 {[%clk 0:00:54]} 22. Qxg7 {[%clk 0:00:28]}  Qc5+ {[%clk 0:00:54]} 23. Kg2 {[%clk 0:00:27]}  Qh5 {[%clk 0:00:54]} 24. h4 {[%clk 0:00:07]}  Qxe2+ {[%clk 0:00:54]} 25. Kh3 {[%clk 0:00:08]}  Qh5 {[%clk 0:00:46]} 26. Rf4 {[%clk 0:00:04]}  Ng5+ {[%clk 0:00:43]} 27. Kg2 {[%clk 0:00:02]}  Rd2+ {[%clk 0:00:42]} 28. Kg1 {[%clk 0:00:02]}  Nh3+ {[%clk 0:00:41]} 29. Kf1 {[%clk 0:00:01]}  Qe2# {[%clk 0:00:39]} 0-1

[Event "December 19 Late 2023"]
[Site "https://www.chess.com"]
[Date "2023.12.19"]
[Round "6"]
[White "Khokhlova, Daria"]
[Black "Gasparyan, David"]
[Result "0-1"]
[Board "132"]
[TimeControl "180+1"]
[WhiteFideId "24182729"]
[BlackFideId "13311980"]
[WhiteElo "2032"]
[BlackElo "2447"]
[WhiteTeam "FID"]
[BlackTeam "USA"]
[WhiteClock "0:00:00"]
[BlackClock "0:00:11"]

1. d4 {[%clk 0:03:00]}  Nf6 {[%clk 0:02:56]} 2. c4 {[%clk 0:03:00]}  e6 {[%clk 0:02:56]} 3. g3 {[%clk 0:02:59]}  d5 {[%clk 0:02:52]} 4. Nf3 {[%clk 0:02:59]}  dxc4 {[%clk 0:02:51]} 5. Bg2 {[%clk 0:02:59]}  a6 {[%clk 0:02:48]} 6. a4 {[%clk 0:02:54]}  Bb4+ {[%clk 0:02:45]} 7. Bd2 {[%clk 0:02:51]}  c5 {[%clk 0:02:38]} 8. O-O {[%clk 0:02:35]}  O-O {[%clk 0:02:35]} 9. dxc5 {[%clk 0:02:24]}  Bxc5 {[%clk 0:02:33]} 10. Qc2 {[%clk 0:02:25]}  Nbd7 {[%clk 0:02:15]} 11. Qxc4 {[%clk 0:02:23]}  Qe7 {[%clk 0:02:12]} 12. Nc3 {[%clk 0:02:19]}  Nb6 {[%clk 0:02:10]} 13. Qb3 {[%clk 0:02:17]}  Nbd5 {[%clk 0:02:04]} 14. Rfd1 {[%clk 0:02:14]}  Bd7 {[%clk 0:02:02]} 15. Be1 {[%clk 0:02:12]}  Bc6 {[%clk 0:01:57]} 16. Rac1 {[%clk 0:02:09]}  Rac8 {[%clk 0:01:56]} 17. Nd2 {[%clk 0:01:46]}  Nxc3 {[%clk 0:01:46]} 18. Rxc3 {[%clk 0:01:39]}  Bxg2 {[%clk 0:01:43]} 19. Kxg2 {[%clk 0:01:40]}  Rfd8 {[%clk 0:01:40]} 20. Rdc1 {[%clk 0:01:31]}  Nd5 {[%clk 0:01:35]} 21. Rc4 {[%clk 0:01:19]}  b6 {[%clk 0:01:00]} 22. Ne4 {[%clk 0:01:14]}  Qb7 {[%clk 0:00:50]} 23. Kg1 {[%clk 0:00:46]}  Be7 {[%clk 0:00:47]} 24. Rxc8 {[%clk 0:00:43]}  Rxc8 {[%clk 0:00:48]} 25. Rxc8+ {[%clk 0:00:41]}  Qxc8 {[%clk 0:00:48]} 26. Bd2 {[%clk 0:00:40]}  Qc6 {[%clk 0:00:41]} 27. f3 {[%clk 0:00:32]}  h6 {[%clk 0:00:34]} 28. Kg2 {[%clk 0:00:31]}  f5 {[%clk 0:00:28]} 29. Nc3 {[%clk 0:00:30]}  Nf6 {[%clk 0:00:24]} 30. Bf4 {[%clk 0:00:27]}  Kh8 {[%clk 0:00:22]} 31. Nd1 {[%clk 0:00:23]}  Qd7 {[%clk 0:00:17]} 32. Nf2 {[%clk 0:00:22]}  Bc5 {[%clk 0:00:16]} 33. Nd3 {[%clk 0:00:14]}  Bd4 {[%clk 0:00:10]} 34. Ne5 {[%clk 0:00:13]}  Bxe5 {[%clk 0:00:07]} 35. Bxe5 {[%clk 0:00:14]}  Nd5 {[%clk 0:00:06]} 36. Qc4 {[%clk 0:00:13]}  b5 {[%clk 0:00:05]} 37. Qd3 {[%clk 0:00:10]}  Kh7 {[%clk 0:00:06]} 38. e4 {[%clk 0:00:08]}  Nf4+ {[%clk 0:00:06]} 39. Bxf4 {[%clk 0:00:08]}  Qxd3 {[%clk 0:00:07]} 40. exf5 {[%clk 0:00:07]}  exf5 {[%clk 0:00:08]} 41. Kh3 {[%clk 0:00:07]}  Qc2 {[%clk 0:00:08]} 42. Be5 {[%clk 0:00:06]}  Qxa4 {[%clk 0:00:09]} 43. Bc3 {[%clk 0:00:05]}  Qc4 {[%clk 0:00:09]} 44. g4 {[%clk 0:00:03]}  b4 {[%clk 0:00:09]} 45. Be5 {[%clk 0:00:03]}  fxg4+ {[%clk 0:00:10]} 46. fxg4 {[%clk 0:00:00]}  Qe4 {[%clk 0:00:11]} 0-1

[Event "December 19 Late 2023"]
[Site "https://www.chess.com"]
[Date "2023.12.19"]
[Round "6"]
[White "Bogaudinov, Rushan"]
[Black "Nasybullina, Alfia"]
[Result "1-0"]
[Board "133"]
[TimeControl "180+1"]
[WhiteFideId "4129288"]
[BlackFideId "4132416"]
[WhiteElo "1937"]
[BlackElo "1920"]
[WhiteTeam "RUS"]
[BlackTeam "KAZ"]
[WhiteClock "0:02:01"]
[BlackClock "0:02:09"]

1. a3 {[%clk 0:03:00]}  e5 {[%clk 0:02:58]} 2. h4 {[%clk 0:02:59]}  Nf6 {[%clk 0:02:58]} 3. h5 {[%clk 0:02:59]}  d5 {[%clk 0:02:58]} 4. d3 {[%clk 0:03:00]}  Nc6 {[%clk 0:02:57]} 5. h6 {[%clk 0:03:00]}  g6 {[%clk 0:02:57]} 6. Nc3 {[%clk 0:03:00]}  d4 {[%clk 0:02:56]} 7. Ne4 {[%clk 0:02:59]}  Nxe4 {[%clk 0:02:55]} 8. dxe4 {[%clk 0:03:00]}  f5 {[%clk 0:02:55]} 9. exf5 {[%clk 0:02:57]}  Bxf5 {[%clk 0:02:56]} 10. Bd2 {[%clk 0:02:57]}  Be7 {[%clk 0:02:54]} 11. e3 {[%clk 0:02:57]}  dxe3 {[%clk 0:02:54]} 12. Bxe3 {[%clk 0:02:57]}  Qxd1+ {[%clk 0:02:52]} 13. Kxd1 {[%clk 0:02:54]}  Rd8+ {[%clk 0:02:52]} 14. Kc1 {[%clk 0:02:54]}  Nd4 {[%clk 0:02:50]} 15. Bxd4 {[%clk 0:02:51]}  exd4 {[%clk 0:02:48]} 16. Nf3 {[%clk 0:02:50]}  O-O {[%clk 0:02:46]} 17. Bc4+ {[%clk 0:02:49]}  Kh8 {[%clk 0:02:46]} 18. Bd3 {[%clk 0:02:47]}  Rd5 {[%clk 0:02:38]} 19. b4 {[%clk 0:02:43]}  b6 {[%clk 0:02:37]} 20. Kb2 {[%clk 0:02:43]}  c5 {[%clk 0:02:37]} 21. bxc5 {[%clk 0:02:43]}  bxc5 {[%clk 0:02:36]} 22. Rae1 {[%clk 0:02:41]}  Bxd3 {[%clk 0:02:35]} 23. cxd3 {[%clk 0:02:41]}  Bf6 {[%clk 0:02:35]} 24. Re6 {[%clk 0:02:36]}  Kg8 {[%clk 0:02:28]} 25. Kc2 {[%clk 0:02:36]}  Kf7 {[%clk 0:02:28]} 26. Ra6 {[%clk 0:02:35]}  Rd7 {[%clk 0:02:26]} 27. Re1 {[%clk 0:02:22]}  Re8 {[%clk 0:02:26]} 28. Rxe8 {[%clk 0:02:20]}  Kxe8 {[%clk 0:02:26]} 29. Rxf6 {[%clk 0:02:20]}  Ke7 {[%clk 0:02:17]} 30. Rc6 {[%clk 0:02:18]}  Rd5 {[%clk 0:02:17]} 31. a4 {[%clk 0:02:17]}  Rh5 {[%clk 0:02:14]} 32. Rc7+ {[%clk 0:02:15]}  Kd6 {[%clk 0:02:14]} 33. Rxh7 {[%clk 0:02:16]}  a5 {[%clk 0:02:14]} 34. Rh8 {[%clk 0:02:12]}  Ke6 {[%clk 0:02:14]} 35. h7 {[%clk 0:02:12]}  Kf7 {[%clk 0:02:14]} 36. Ra8 {[%clk 0:02:01]}  Rxh7 {[%clk 0:02:09]} 37. Ng5+ {[%clk 0:02:01]} 1-0

[Event "December 19 Late 2023"]
[Site "https://www.chess.com"]
[Date "2023.12.19"]
[Round "6"]
[White "BenchGM"]
[Black "Laskakis, Konstantinos"]
[Result "0-1"]
[Board "135"]
[TimeControl "180+1"]
[BlackFideId "42134374"]
[WhiteElo "2250"]
[BlackElo "2374"]
[BlackTeam "GRE"]
[WhiteClock "0:00:03"]
[BlackClock "0:00:17"]

1. e4 {[%clk 0:03:00]}  e5 {[%clk 0:02:59]} 2. Nf3 {[%clk 0:03:00]}  Nc6 {[%clk 0:03:00]} 3. d4 {[%clk 0:03:00]}  exd4 {[%clk 0:02:59]} 4. Nxd4 {[%clk 0:03:01]}  Nf6 {[%clk 0:02:59]} 5. Nxc6 {[%clk 0:03:01]}  bxc6 {[%clk 0:02:59]} 6. e5 {[%clk 0:03:01]}  Qe7 {[%clk 0:02:59]} 7. Qe2 {[%clk 0:03:02]}  Nd5 {[%clk 0:02:59]} 8. c4 {[%clk 0:03:03]}  Ba6 {[%clk 0:03:00]} 9. Nd2 {[%clk 0:03:03]}  g6 {[%clk 0:02:55]} 10. Nf3 {[%clk 0:03:02]}  Qb4+ {[%clk 0:02:54]} 11. Kd1 {[%clk 0:03:02]}  Ne7 {[%clk 0:02:54]} 12. Bg5 {[%clk 0:02:56]}  Bg7 {[%clk 0:02:40]} 13. Qd2 {[%clk 0:02:55]}  Rb8 {[%clk 0:02:32]} 14. Qxb4 {[%clk 0:02:17]}  Rxb4 {[%clk 0:02:32]} 15. b3 {[%clk 0:02:16]}  c5 {[%clk 0:02:32]} 16. Kc2 {[%clk 0:01:49]}  Bb7 {[%clk 0:02:19]} 17. Re1 {[%clk 0:01:47]}  Bxf3 {[%clk 0:02:11]} 18. gxf3 {[%clk 0:01:47]}  Nc6 {[%clk 0:02:10]} 19. Be3 {[%clk 0:01:38]}  Nd4+ {[%clk 0:02:02]} 20. Bxd4 {[%clk 0:01:37]}  cxd4 {[%clk 0:02:02]} 21. a3 {[%clk 0:01:17]}  Rb6 {[%clk 0:02:00]} 22. c5 {[%clk 0:01:16]}  Re6 {[%clk 0:01:50]} 23. Bh3 {[%clk 0:01:12]}  Re7 {[%clk 0:01:36]} 24. Kd3 {[%clk 0:01:00]}  O-O {[%clk 0:01:33]} 25. f4 {[%clk 0:00:50]}  Rfe8 {[%clk 0:01:30]} 26. Re4 {[%clk 0:00:43]}  d6 {[%clk 0:01:08]} 27. cxd6 {[%clk 0:00:37]}  cxd6 {[%clk 0:01:08]} 28. Rhe1 {[%clk 0:00:34]}  dxe5 {[%clk 0:01:06]} 29. fxe5 {[%clk 0:00:34]}  Bxe5 {[%clk 0:00:45]} 30. f4 {[%clk 0:00:20]}  Bd6 {[%clk 0:00:45]} 31. Rxe7 {[%clk 0:00:20]}  Rxe7 {[%clk 0:00:44]} 32. Rxe7 {[%clk 0:00:20]}  Bxe7 {[%clk 0:00:45]} 33. a4 {[%clk 0:00:17]}  Bd6 {[%clk 0:00:40]} 34. Kxd4 {[%clk 0:00:15]}  Bxf4 {[%clk 0:00:39]} 35. b4 {[%clk 0:00:13]}  Bxh2 {[%clk 0:00:39]} 36. b5 {[%clk 0:00:13]}  Bg1+ {[%clk 0:00:37]} 37. Kd5 {[%clk 0:00:12]}  Kg7 {[%clk 0:00:37]} 38. a5 {[%clk 0:00:12]}  h5 {[%clk 0:00:33]} 39. Kc6 {[%clk 0:00:12]}  g5 {[%clk 0:00:31]} 40. b6 {[%clk 0:00:13]}  axb6 {[%clk 0:00:30]} 41. axb6 {[%clk 0:00:14]}  g4 {[%clk 0:00:27]} 42. Bg2 {[%clk 0:00:13]}  h4 {[%clk 0:00:22]} 43. b7 {[%clk 0:00:13]}  Bh2 {[%clk 0:00:22]} 44. Kd5 {[%clk 0:00:13]}  Bb8 {[%clk 0:00:19]} 45. Ke4 {[%clk 0:00:12]}  Kg6 {[%clk 0:00:19]} 46. Ke3 {[%clk 0:00:09]}  f5 {[%clk 0:00:19]} 47. Bc6 {[%clk 0:00:08]}  Kg5 {[%clk 0:00:19]} 48. Kf2 {[%clk 0:00:08]}  h3 {[%clk 0:00:18]} 49. Kg1 {[%clk 0:00:07]}  f4 {[%clk 0:00:18]} 50. Kf2 {[%clk 0:00:07]}  Kh4 {[%clk 0:00:17]} 51. Kg1 {[%clk 0:00:06]}  Ba7+ {[%clk 0:00:17]} 52. Kh1 {[%clk 0:00:06]}  g3 {[%clk 0:00:17]} 53. Bf3 {[%clk 0:00:05]}  g2+ {[%clk 0:00:17]} 54. Bxg2 {[%clk 0:00:04]}  hxg2+ {[%clk 0:00:17]} 55. Kxg2 {[%clk 0:00:05]}  Kg4 {[%clk 0:00:17]} 56. b8=Q {[%clk 0:00:03]}  Bxb8 {[%clk 0:00:17]} 0-1

[Event "December 19 Late 2023"]
[Site "https://www.chess.com"]
[Date "2023.12.19"]
[Round "6"]
[White "Melamed, Daniel"]
[Black "Malek, Omid"]
[Result "0-1"]
[Board "138"]
[TimeControl "180+1"]
[WhiteFideId "3229076"]
[BlackFideId "2605384"]
[WhiteElo "1908"]
[BlackElo "2013"]
[WhiteTeam "AUS"]
[BlackTeam "CAN"]
[WhiteClock "0:00:26"]
[BlackClock "0:01:24"]

1. d4 {[%clk 0:03:00]}  Nf6 {[%clk 0:02:59]} 2. Nf3 {[%clk 0:03:00]}  e6 {[%clk 0:02:58]} 3. Bf4 {[%clk 0:02:59]}  d5 {[%clk 0:02:59]} 4. e3 {[%clk 0:02:59]}  Bd6 {[%clk 0:02:59]} 5. c3 {[%clk 0:02:59]}  O-O {[%clk 0:02:58]} 6. Bg3 {[%clk 0:02:59]}  Nbd7 {[%clk 0:02:58]} 7. Nbd2 {[%clk 0:02:56]}  Re8 {[%clk 0:02:56]} 8. Ne5 {[%clk 0:02:55]}  Nf8 {[%clk 0:02:55]} 9. Bd3 {[%clk 0:02:54]}  Ng6 {[%clk 0:02:56]} 10. f4 {[%clk 0:02:51]}  c5 {[%clk 0:02:55]} 11. O-O {[%clk 0:02:48]}  b6 {[%clk 0:02:54]} 12. h4 {[%clk 0:02:43]}  h5 {[%clk 0:02:52]} 13. Nxg6 {[%clk 0:02:40]}  fxg6 {[%clk 0:02:52]} 14. Bxg6 {[%clk 0:02:41]}  Rf8 {[%clk 0:02:52]} 15. Nf3 {[%clk 0:02:33]}  Bd7 {[%clk 0:02:49]} 16. Ne5 {[%clk 0:02:33]}  Be8 {[%clk 0:02:49]} 17. Bd3 {[%clk 0:02:31]}  c4 {[%clk 0:02:47]} 18. Bc2 {[%clk 0:02:30]}  b5 {[%clk 0:02:46]} 19. a3 {[%clk 0:02:30]}  a5 {[%clk 0:02:45]} 20. Qf3 {[%clk 0:02:25]}  b4 {[%clk 0:02:44]} 21. axb4 {[%clk 0:02:24]}  axb4 {[%clk 0:02:44]} 22. Ng6 {[%clk 0:01:59]}  Bxg6 {[%clk 0:02:37]} 23. Bxg6 {[%clk 0:02:00]}  bxc3 {[%clk 0:02:35]} 24. bxc3 {[%clk 0:02:00]}  Ra3 {[%clk 0:02:27]} 25. Rxa3 {[%clk 0:01:58]}  Bxa3 {[%clk 0:02:28]} 26. Bxh5 {[%clk 0:01:57]}  Bb2 {[%clk 0:02:24]} 27. Bg6 {[%clk 0:01:50]}  Bxc3 {[%clk 0:02:22]} 28. h5 {[%clk 0:01:51]}  Bb4 {[%clk 0:02:13]} 29. Bh4 {[%clk 0:01:49]}  Be7 {[%clk 0:02:03]} 30. Qh3 {[%clk 0:01:47]}  Qd6 {[%clk 0:01:59]} 31. g4 {[%clk 0:01:40]}  c3 {[%clk 0:01:56]} 32. g5 {[%clk 0:01:26]}  Ne4 {[%clk 0:01:53]} 33. h6 {[%clk 0:01:18]}  gxh6 {[%clk 0:01:47]} 34. gxh6 {[%clk 0:01:19]}  Kh8 {[%clk 0:01:43]} 35. Bxe4 {[%clk 0:01:13]}  dxe4 {[%clk 0:01:43]} 36. Bxe7 {[%clk 0:01:13]}  Qxe7 {[%clk 0:01:42]} 37. Kh2 {[%clk 0:01:07]}  Rg8 {[%clk 0:01:36]} 38. Qh5 {[%clk 0:01:03]}  Kh7 {[%clk 0:01:28]} 39. Rc1 {[%clk 0:00:49]}  Rg6 {[%clk 0:01:25]} 40. Qe5 {[%clk 0:00:26]}  Qh4# {[%clk 0:01:24]} 0-1

[Event "December 19 Late 2023"]
[Site "https://www.chess.com"]
[Date "2023.12.19"]
[Round "6"]
[White "Gerbelli Neto, Eduardo"]
[Black "Quirke, Jeffrey"]
[Result "1-0"]
[Board "140"]
[TimeControl "180+1"]
[WhiteFideId "2103281"]
[BlackFideId "2013029"]
[WhiteElo "2178"]
[BlackElo "2153"]
[WhiteTeam "BRA"]
[BlackTeam "USA"]
[WhiteClock "0:00:25"]
[BlackClock "0:00:00"]

1. e4 {[%clk 0:03:00]}  e6 {[%clk 0:02:59]} 2. d4 {[%clk 0:03:00]}  d5 {[%clk 0:03:00]} 3. Nc3 {[%clk 0:03:01]}  Nf6 {[%clk 0:02:59]} 4. e5 {[%clk 0:03:00]}  Nfd7 {[%clk 0:02:59]} 5. Nf3 {[%clk 0:03:00]}  c5 {[%clk 0:03:00]} 6. dxc5 {[%clk 0:03:00]}  Nc6 {[%clk 0:02:59]} 7. Bf4 {[%clk 0:02:59]}  Bxc5 {[%clk 0:02:36]} 8. Bd3 {[%clk 0:02:59]}  Be7 {[%clk 0:02:31]} 9. h4 {[%clk 0:02:58]}  Nc5 {[%clk 0:02:29]} 10. Be2 {[%clk 0:02:39]}  a6 {[%clk 0:02:29]} 11. h5 {[%clk 0:02:36]}  h6 {[%clk 0:02:27]} 12. Nd4 {[%clk 0:02:18]}  Bd7 {[%clk 0:02:04]} 13. O-O {[%clk 0:02:13]}  b5 {[%clk 0:01:53]} 14. a3 {[%clk 0:02:04]}  Rb8 {[%clk 0:01:50]} 15. Bg3 {[%clk 0:01:58]}  O-O {[%clk 0:01:48]} 16. f4 {[%clk 0:01:56]}  Ne4 {[%clk 0:01:34]} 17. Nxe4 {[%clk 0:01:52]}  dxe4 {[%clk 0:01:33]} 18. Bf2 {[%clk 0:01:47]}  Nxd4 {[%clk 0:01:22]} 19. Qxd4 {[%clk 0:01:44]}  Bc6 {[%clk 0:01:23]} 20. Rfd1 {[%clk 0:01:43]}  Qxd4 {[%clk 0:01:22]} 21. Bxd4 {[%clk 0:01:44]}  Rfd8 {[%clk 0:01:18]} 22. c3 {[%clk 0:01:43]}  Bd5 {[%clk 0:01:17]} 23. Kf2 {[%clk 0:01:42]}  a5 {[%clk 0:01:11]} 24. Ke3 {[%clk 0:01:36]}  Rdc8 {[%clk 0:01:10]} 25. b4 {[%clk 0:01:30]}  a4 {[%clk 0:01:09]} 26. g4 {[%clk 0:01:29]}  f5 {[%clk 0:00:57]} 27. exf6 {[%clk 0:01:19]}  Bxf6 {[%clk 0:00:57]} 28. Bxf6 {[%clk 0:00:57]}  gxf6 {[%clk 0:00:58]} 29. Rac1 {[%clk 0:00:57]}  Kf7 {[%clk 0:00:54]} 30. g5 {[%clk 0:00:52]}  fxg5 {[%clk 0:00:47]} 31. fxg5 {[%clk 0:00:53]}  hxg5 {[%clk 0:00:48]} 32. Rg1 {[%clk 0:00:47]}  Rg8 {[%clk 0:00:45]} 33. Rcf1+ {[%clk 0:00:45]}  Ke7 {[%clk 0:00:44]} 34. h6 {[%clk 0:00:41]}  Rg6 {[%clk 0:00:28]} 35. h7 {[%clk 0:00:34]}  Rh6 {[%clk 0:00:22]} 36. Rh1 {[%clk 0:00:34]}  Rxh1 {[%clk 0:00:16]} 37. Rxh1 {[%clk 0:00:35]}  Rh8 {[%clk 0:00:15]} 38. Bxb5 {[%clk 0:00:35]}  g4 {[%clk 0:00:04]} 39. Bf1 {[%clk 0:00:26]}  Kf6 {[%clk 0:00:02]} 40. c4 {[%clk 0:00:25]}  Bb7 {[%clk 0:00:00]} 41. Bg2 {[%clk 0:00:25]} 1-0